[Event "50th La Roda Open 2024"]
[Site "La Roda"]
[Date "2024.03.31"]
[Round "9.12"]
[White "Roquero Redondo, Miguel"]
[Black "Ramiro Ovejero, Juan Luis"]
[Result "1/2-1/2"]
[ECO "B32"]
[WhiteElo "2086"]
[BlackElo "2316"]
[Annotator "ChessBase"]
[PlyCount "31"]
[EventDate "2024.03.27"]
[EventType "swiss"]
[EventCountry "ESP"]
[SourceTitle "playchess.com"]
[Source "ChessBase"]
[SourceQuality "1"]
[TimeControl "5400+30"]

1. e4 {[%emt 0:00:57]} c5 {[%emt 0:00:27]} 2. Nf3 {[%emt 0:00:08]} Nc6 {[%emt 0:00:05]} 3. d4 {[%emt 0:00:07]} cxd4 {[%emt 0:00:05]} 4. Nxd4 {[%emt 0:00:08]} e5 {[%emt 0:00:04]} 5. Nb5 {[%emt 0:00:11]} d6 {[%emt 0:00:06]} 6. N1c3 {[%emt 0:00:22]} a6 {[%emt 0:00:06]} 7. Na3 {[%emt 0:00:16]} b5 {[%emt 0:00:07]} 8. Nd5 {[%emt 0:00:16]} Nge7 {[%emt 0:00:07]} 9. Bd3 {[%emt 0:01:24]} Nxd5 {[%emt 0:05:41]} 10. exd5 {[%emt 0:00:13]} Ne7 {[%emt 0:00:51]} 11. c4 {[%emt 1:31:58]} g6 {[%emt 1:28:21]} 12. cxb5 {[%emt 0:00:30]} Bg7 13. O-O {[%emt 0:00:30]} O-O {[%emt 0:01:00]} 14. Re1 f5 {[%emt 0:00:30]} 15. bxa6 {[%emt 0:01:00]} Bxa6 {[%emt 0:00:30]} 16. Bf1 {[%emt 0:00:30]} 1/2-1/2

[Event "50th La Roda Open 2024"]
[Site "La Roda"]
[Date "2024.03.31"]
[Round "9.13"]
[White "Hapala, Elisabeth"]
[Black "Fernandez Barrera, Victor"]
[Result "1/2-1/2"]
[ECO "C09"]
[WhiteElo "2015"]
[BlackElo "2249"]
[Annotator "RC"]
[PlyCount "27"]
[EventDate "2024.03.27"]
[EventType "swiss"]
[EventCountry "ESP"]
[SourceTitle "playchess.com"]
[Source "ChessBase"]
[SourceQuality "1"]
[TimeControl "5400+30"]

1. e4 {[%emt 0:00:01]} e6 {[%emt 0:00:06]} 2. d4 {[%emt 0:00:04]} d5 {[%emt 0:00:03]} 3. Nd2 {[%emt 0:00:03]} c5 {[%emt 0:00:37]} 4. exd5 {[%emt 0:00:08]} exd5 {[%emt 0:00:33]} 5. Ngf3 {[%emt 0:00:11]} Nc6 {[%emt 0:00:25]} 6. Bb5 {[%emt 0:00:43]} Qe7+ {[%emt 0:00:33]} 7. Be2 {[%emt 0:01:22]} Qc7 {[%emt 0:00:07]} 8. O-O {[%emt 0:01:12]} Nf6 {[%emt 0:00:05]} 9. Re1 {[%emt 0:00:54]} cxd4 {[%emt 0:00:46]} 10. Nb3 {[%emt 0:01:03]} Bb4 {[%emt 0:00:16]} 11. Bd2 {[%emt 0:00:38]} Bxd2 {[%emt 0:00:13]} 12. Qxd2 {[%emt 0:02:37]} O-O {[%emt 0:00:16]} 13. Bd3 {[%emt 0:03:44]} Bg4 {[%emt 0:05:49]} 14. Nbxd4 {[%emt 0:01:35]} 1/2-1/2

[Event "50th La Roda Open 2024"]
[Site "La Roda"]
[Date "2024.03.31"]
[Round "9.14"]
[White "Alvarez Serrano, Carlos"]
[Black "Liu, Meng"]
[Result "1/2-1/2"]
[ECO "A13"]
[WhiteElo "2230"]
[BlackElo "1877"]
[Annotator "RC"]
[PlyCount "45"]
[EventDate "2024.03.27"]
[EventType "swiss"]
[EventCountry "ESP"]
[SourceTitle "playchess.com"]
[Source "ChessBase"]
[SourceQuality "1"]
[TimeControl "5400+30"]

1. Nf3 {[%emt 0:00:33]} Nf6 {[%emt 0:00:08]} 2. c4 {[%emt 0:00:16]} e6 {[%emt 0:00:13]} 3. g3 {[%emt 0:00:15]} d5 {[%emt 0:00:22]} 4. Bg2 {[%emt 0:00:08]} dxc4 {[%emt 0:00:08]} 5. Qa4+ {[%emt 0:01:42]} Nbd7 {[%emt 0:00:20]} 6. Qxc4 {[%emt 0:00:39]} a6 {[%emt 0:00:12]} 7. Qc2 {[%emt 0:03:12]} c5 {[%emt 0:00:42]} 8. d3 {[%emt 0:00:30]} Be7 {[%emt 0:08:24]} 9. O-O {[%emt 0:01:10]} O-O {[%emt 0:00:04]} 10. Nc3 {[%emt 0:02:14]} Ra7 {[%emt 0:02:35]} 11. Qa4 {[%emt 0:05:42]} Nb6 {[%emt 0:09:31]} 12. Qb3 {[%emt 0:01:32]} Nbd7 {[%emt 0:00:56]} 13. Qa4 {[%emt 0:01:13]} Nb6 {[%emt 0:00:05]} 14. Qb3 {[%emt 0:00:07]} Nbd7 {[%emt 0:00:02]} 15. a4 {[%emt 0:05:56]} b6 {[%emt 0:00:30]} 16. Nd2 {[%emt 0:02:42]} Bb7 {[%emt 0:01:23]} 17. Bxb7 {[%emt 0:02:11]} Rxb7 {[%emt 0:00:07]} 18. Nc4 {[%emt 0:00:39]} Qc7 {[%emt 0:12:22]} 19. Bf4 {[%emt 0:01:06]} Qc6 {[%emt 0:00:45]} 20. e4 {[%emt 0:04:51]} Rd8 {[%emt 0:02:03]} 21. Rad1 {[%emt 0:00:52]} h6 {[%emt 0:02:20]} 22. f3 {[%emt 0:03:40]} b5 {[%emt 0:10:32]} 23. axb5 {[%emt 0:04:16]} 1/2-1/2

[Event "50th La Roda Open 2024"]
[Site "La Roda"]
[Date "2024.03.31"]
[Round "9.15"]
[White "Sanchez Carrasco, Francisco Javier"]
[Black "Vehi Bach, Victor Manuel"]
[Result "0-1"]
[ECO "A17"]
[WhiteElo "1981"]
[BlackElo "2211"]
[Annotator "RC"]
[PlyCount "64"]
[EventDate "2024.03.27"]
[EventType "swiss"]
[EventCountry "ESP"]
[SourceTitle "playchess.com"]
[Source "ChessBase"]
[SourceQuality "1"]
[TimeControl "5400+30"]

1. c4 {[%emt 0:00:08]} e6 {[%emt 0:01:53]} 2. Nf3 {[%emt 0:00:49]} Nf6 {[%emt 0:00:43]} 3. Nc3 {[%emt 0:00:16]} d5 {[%emt 0:00:08]} 4. e3 {[%emt 0:00:10]} b6 {[%emt 0:01:18]} 5. Be2 {[%emt 0:00:46]} Bb7 {[%emt 0:00:08]} 6. O-O {[%emt 0:00:12]} Bd6 {[%emt 0:00:31]} 7. Nb5 {[%emt 0:01:12]} Be7 {[%emt 0:00:19]} 8. b3 {[%emt 0:00:21]} a6 {[%emt 0:00:56]} 9. Na3 {[%emt 0:01:08]} O-O {[%emt 0:00:34]} 10. Bb2 {[%emt 0:00:11]} Nbd7 {[%emt 0:04:34]} 11. Rc1 {[%emt 0:03:28]} Bd6 {[%emt 0:00:13]} 12. d4 {[%emt 0:03:42]} Qe7 {[%emt 0:04:31]} 13. Nb1 {[%emt 0:00:12]} Rad8 {[%emt 0:14:55]} 14. Qc2 {[%emt 0:05:41]} c5 {[%emt 0:13:26]} 15. Nbd2 {[%emt 0:02:59]} cxd4 {[%emt 0:07:15]} 16. exd4 {[%emt 0:02:39]} Rc8 {[%emt 0:01:21]} 17. Qb1 {[%emt 0:01:31]} Ne4 {[%emt 0:09:17]} 18. Rcd1 {[%emt 0:13:39]} Nxd2 {[%emt 0:04:23]} 19. Rxd2 {[%emt 0:09:09]} dxc4 {[%emt 0:02:19]} 20. bxc4 {[%emt 0:00:20]} Bxf3 {[%emt 0:00:27]} 21. Bxf3 {[%emt 0:01:18]} Rxc4 {[%emt 0:00:07]} 22. Be2 {[%emt 0:06:27]} Ra4 {[%emt 0:00:52]} 23. Rd3 {[%emt 0:01:46]} b5 {[%emt 0:04:55]} 24. Rh3 {[%emt 0:02:11]} g6 {[%emt 0:03:36]} 25. Rd1 {[%emt 0:10:50]} Nb6 {[%emt 0:01:46]} 26. Bc1 {[%emt 0:03:11]} Nd5 {[%emt 0:00:51]} 27. Bh6 {[%emt 0:00:59]} Rd8 {[%emt 0:05:14]} 28. Qb2 {[%emt 0:05:18]} Bf4 {[%emt 0:01:00]} 29. g3 {[%emt 0:01:26]} Bxh6 {[%emt 0:00:09]} 30. Rxh6 {[%emt 0:00:05]} Qb4 {[%emt 0:04:07]} 31. Qc2 {[%emt 0:05:37]} Nc3 {[%emt 0:01:17]} 32. Re1 {[%emt 0:06:21]} Rxa2 {[%emt 0:01:00]} 0-1

[Event "50th La Roda Open 2024"]
[Site "La Roda"]
[Date "2024.03.31"]
[Round "9.16"]
[White "Juan Mas, Santiago"]
[Black "Jimenez Martinez, Jose Vicente"]
[Result "0-1"]
[ECO "E60"]
[WhiteElo "1929"]
[BlackElo "2195"]
[Annotator "ChessBase"]
[PlyCount "90"]
[EventDate "2024.03.27"]
[EventType "swiss"]
[EventCountry "ESP"]
[SourceTitle "playchess.com"]
[Source "ChessBase"]
[SourceQuality "1"]
[TimeControl "5400+30"]

1. b3 {[%emt 0:00:03]} d6 {[%emt 0:00:06]} 2. Bb2 {[%emt 0:00:31]} Nd7 {[%emt 0:00:05]} 3. g3 {[%emt 0:01:03]} Ngf6 {[%emt 0:00:09]} 4. Bg2 {[%emt 0:00:37]} g6 {[%emt 0:00:07]} 5. c4 {[%emt 0:00:18]} Bg7 {[%emt 0:00:22]} 6. Nf3 {[%emt 0:00:57]} O-O {[%emt 0:00:08]} 7. d4 {[%emt 0:00:09]} a6 {[%emt 0:14:02]} 8. O-O {[%emt 0:02:45]} Rb8 {[%emt 0:00:40]} 9. Na3 {[%emt 0:08:07]} e5 {[%emt 0:03:52]} 10. dxe5 {[%emt 0:02:07]} Ng4 {[%emt 0:00:20]} 11. Qd2 {[%emt 0:02:48]} Ngxe5 {[%emt 0:00:40]} 12. Nxe5 {[%emt 0:06:20]} Nxe5 {[%emt 0:02:19]} 13. Rad1 {[%emt 0:00:33]} Qe7 {[%emt 0:05:19]} 14. h3 {[%emt 0:03:23]} Bf5 {[%emt 0:00:39]} 15. f4 {[%emt 0:01:30]} Nc6 {[%emt 0:01:52]} 16. Bxg7 {[%emt 0:12:19]} Kxg7 {[%emt 0:00:19]} 17. g4 {[%emt 0:02:30]} Be4 {[%emt 0:01:09]} 18. f5 {[%emt 0:01:21]} f6 {[%emt 0:00:20]} 19. Bxe4 {[%emt 0:07:46]} Qxe4 {[%emt 0:01:29]} 20. Rf4 {[%emt 0:00:31]} Qe5 {[%emt 0:00:20]} 21. Nc2 {[%emt 0:01:15]} g5 {[%emt 0:05:26]} 22. Rf3 {[%emt 0:02:39]} Rbe8 {[%emt 0:00:16]} 23. Re3 {[%emt 0:12:09]} Qb2 {[%emt 0:04:23]} 24. Re6 {[%emt 0:06:39]} Rxe6 {[%emt 0:09:18]} 25. fxe6 {[%emt 0:00:05]} Qe5 {[%emt 0:00:09]} 26. Qe3 {[%emt 0:07:37]} Re8 {[%emt 0:13:23]} 27. Qxe5 {[%emt 0:00:40]} Nxe5 {[%emt 0:00:21]} 28. Nd4 {[%emt 0:02:46]} Kg6 {[%emt 0:05:56]} 29. Kg2 {[%emt 0:03:24]} Nc6 {[%emt 0:01:47]} 30. Kf3 {[%emt 0:07:34]} Nxd4+ {[%emt 0:00:15]} 31. Rxd4 {[%emt 0:00:03]} Rxe6 {[%emt 0:00:11]} 32. e4 {[%emt 0:00:29]} h5 {[%emt 0:01:26]} 33. Rd5 {[%emt 0:01:51]} hxg4+ {[%emt 0:02:13]} 34. hxg4 {[%emt 0:00:02]} Kf7 {[%emt 0:01:43]} 35. Rd2 {[%emt 0:00:39]} Re8 {[%emt 0:01:29]} 36. Rh2 {[%emt 0:01:04]} Kg7 {[%emt 0:00:06]} 37. Rd2 {[%emt 0:00:43]} Kg6 {[%emt 0:02:39]} 38. Rh2 {[%emt 0:01:16]} a5 {[%emt 0:24:12]} 39. a4 {[%emt 0:01:09]} Re7 {[%emt 0:00:00]} 40. Rc2 {[%emt 0:01:38]} Rh7 {[%emt 0:00:00]} 41. Kg3 {[%emt 0:00:08]} Rh1 {[%emt 0:00:00]} 42. Rc3 {[%emt 0:00:57]} b6 {[%emt 0:00:00]} 43. Re3 {[%emt 0:00:40]} Kf7 {[%emt 0:00:00]} 44. Kg2 {[%emt 0:00:27]} Rb1 {[%emt 0:00:00]} 45. Kf2 {[%emt 0:00:51]} Ke6 {[%emt 0:00:00]} 0-1